Cogmind - Beta 16.1 @@@ ROGUE MODE // 2026.03.15 @ 00:17:37 Player: Ragnakor Result: Destroyed by P-70 Sage with Tesla Rifle Performance ------------- Evolutions (6) 3000 Regions Visited (12) 2400 Robots Destroyed (29) 145 Value Destroyed (636) 636 Prototype IDs (6) 120 Alien Tech Used (0) 0 Bonus (464) 464 TOTAL SCORE: 6765 Bonus ------- Entered DSFs 500 Aligned with FarCom 300 Friendly Fire -336 Cogmind --------- Core Integrity 0/1150 Matter 192/300 Energy 72/100 System Corruption 9% Temperature Cool (0) Movement Core (50) Location -4/Factory Parts ------- > --- POWER (1) -------- (None) > --- PROPULSION (4) --- (None) > --- UTILITY (12) ----- Advanced Visual Processing Unit Enhanced Optical Array Advanced Signal Interpreter Terrain Scan Processor Advanced Hacking Suite > --- WEAPON (2) ------- (None) > --- INVENTORY (5) ---- Advanced ECM Suite Improved Datajack Remote Datajack Peak State ------------ > --- POWER ------------ Micro Nuclear Core > --- PROPULSION ------- Nuclear Pulse Thruster Nuclear Pulse Thruster Nuclear Pulse Thruster Nuclear Pulse Thruster > --- UTILITY ---------- Small Storage Unit Advanced Visual Processing Unit Enhanced Optical Array Advanced Sensor Array Improved Terrain Scanner Terrain Scan Processor Hacking Suite System Shield > --- WEAPON ----------- Longsword +1 > --- INVENTORY -------- Light Nuclear Core Xenon Bombardment Thruster Advanced ECM Suite Proton Missile Launcher Improved Grenade Launcher Improved Datajack Remote Datajack Impact Mace [Rating: 60] Favorites ----------- Power Micro Nuclear Core Engine Ion Engine Power Core Micro Nuclear Core Reactor Light Antimatter Reactor Propulsion VTOL Module Leg Aluminum Leg Flight Unit VTOL Module Utility Hacking Suite Device Improved Terrain Scanner Storage Small Storage Unit Processor Advanced Visual Processing Unit Hackware Hacking Suite Weapon Longsword +1 Energy Gun Gatling Laser Ballistic Gun Assault Rifle Launcher Rocket Launcher Special Weapon Remote Datajack Impact Weapon Impact Mace Slashing Weapon Longsword +1 Special Melee Weapon Advanced Datajack Build | -11 -10 -10 -10 -9 -8 -7 -7 -7 -6 -6 -5 -4 ------- Run | Yrd Mat Min Exi Min Mat Fac Low Low Fac DSF Fac Fac Slots Evolved 12 | . . . . . 4 2 . . 2 . 2 2 Power . | . . . . . . . . . . . . . Propulsion 2 | . . . . . 2 . . . . . . . Utility 10 | . . . . . 2 2 . . 2 . 2 2 Weapon . | . . . . . . . . . . . . . Parts Attached 60 | 8 . . 1 . 13 18 3 . 2 6 1 8 Power 8 | 2 . . . . 1 4 . . . . . 1 Engine 3 | 2 . . . . . 1 . . . . . . Core 4 | . . . . . 1 3 . . . . . . Reactor 1 | . . . . . . . . . . . . 1 Propulsion 19 | 2 . . . . 6 3 1 . 1 4 . 2 Treads . | . . . . . . . . . . . . . Leg 4 | 2 . . . . . . . . . . . 2 Wheel . | . . . . . . . . . . . . . Hover . | . . . . . . . . . . . . . Flight 15 | . . . . . 6 3 1 . 1 4 . . Utility 21 | 2 . . . . 3 7 1 . 1 2 1 4 Device 8 | 1 . . . . 1 3 . . . 2 . 1 Storage 1 | 1 . . . . . . . . . . . . Processor 5 | . . . . . 1 1 . . 1 . . 2 Hackware 7 | . . . . . 1 3 1 . . . 1 1 Protection . | . . . . . . . . . . . . . Artifact . | . . . . . . . . . . . . . Weapon 12 | 2 . . 1 . 3 4 1 . . . . 1 Energy Gun 1 | . . . . . . . 1 . . . . . Energy Cannon . | . . . . . . . . . . . . . Ballistic Gun 4 | 2 . . . . 2 . . . . . . . Ballistic Cannon . | . . . . . . . . . . . . . Launcher 3 | . . . . . 1 2 . . . . . . Special Weapon 1 | . . . . . . 1 . . . . . . Impact Weapon 1 | . . . . . . 1 . . . . . . Slashing Weapon 1 | . . . 1 . . . . . . . . . Piercing Weapon . | . . . . . . . . . . . . . Special Melee Weapon 1 | . . . . . . . . . . . . 1 Unidentified Prototypes 5 | . . . 1 . 1 3 . . . . . . Parts Lost 32 | . . . . . 1 5 4 . . 2 3 17 Power 3 | . . . . . . . . . . . 1 2 Propulsion 12 | . . . . . . 3 2 . . 1 2 4 Utility 11 | . . . . . 1 2 1 . . 1 . 6 Weapon 6 | . . . . . . . 1 . . . . 5 Highest Loss Streak 8 | . . . . . 1 2 4 . . 2 3 8 To Critical Strikes . | . . . . . . . . . . . . . Average Backups 6 | 1 3 4 4 7 7 7 7 8 8 8 7 5 Power . | . 1 1 1 1 . . 1 1 1 1 . . Propulsion 1 | . 1 1 1 3 2 1 1 1 1 1 . . Utility 1 | . . 1 1 1 2 1 1 1 1 1 1 1 Weapon 2 | . 1 1 1 1 1 2 3 3 3 3 2 2 Tool/Special . | . . . . . . . . . . . . . Unused Backups 3 | . . . . 1 . 1 . . . . . 1 Power . | . . . . . . . . . . . . . Propulsion 1 | . . . . 1 . . . . . . . . Utility 1 | . . . . . . 1 . . . . . . Weapon . | . . . . . . . . . . . . . Tool/Special 1 | . . . . . . . . . . . . 1 Average Slot Usage (%) 89 | . 100 100 100 100 98 98 92 84 75 88 71 54 Engine 4 | . 14 14 14 14 5 . . . . . . . Core 3 | . . . . . 3 7 7 7 6 6 5 2 Leg 8 | . 28 28 28 28 . . . . . . . . Flight 16 | . . . . . 35 29 25 23 22 25 16 5 Device 9 | . 14 14 14 14 9 9 11 7 6 9 5 3 Storage 8 | . 14 14 14 14 9 7 7 7 6 6 5 4 Processor 9 | . . . . . 7 13 15 15 13 20 17 15 Hackware 9 | . . . . . 8 13 7 15 13 13 13 13 Ballistic Gun 7 | . 28 28 25 14 8 . . . . . . . Impact Weapon 1 | . . . . . . 3 . . . . . . Slashing Weapon 5 | . . . 2 14 9 7 7 7 6 6 4 2 Peak Build Rating 60 | 9 9 9 16 17 31 43 43 37 46 60 55 54 Average Rating 31 | 5 9 9 10 16 26 38 40 37 40 57 52 42 On Entrance 26 | . 9 9 9 16 17 27 43 41 37 46 54 40 Avg Prop Armor Cover (%) 7 | . . . . . . . . . . . 6 11 Naked Turns . | . . . . . . . . . . . . . Heaviest Build 21 | 14 14 14 16 16 18 20 21 15 15 21 21 21 Greatest Support 41 | 20 20 20 20 20 16 21 21 16 22 24 21 41 Greatest Overweight (x) 3 | 1 . . . . 1 1 1 . . 1 1 3 Average Overweight (x) . | . . . . . . . . . . . . . Largest Inventory Capacity 8 | 8 8 8 8 8 8 8 8 8 8 8 8 8 Average Capacity 7 | 7 8 8 8 8 8 8 8 8 8 8 8 7 Most Carried 8 | 3 4 4 4 8 8 8 8 8 8 8 8 7 Average Carried 6 | 1 3 4 4 7 7 7 7 8 8 7 7 5 Final Capacity 8 | 8 8 8 8 8 8 8 8 8 8 8 8 5 Final Carried 8 | 3 4 4 4 8 8 8 8 8 8 7 7 3 Class Distribution -------------------- 32% | Scavenger-Scout 25% | Mutant 21% | Hacker-Mutant 7% | Assassin 5% | Scout 5% | Hacker-Scout Dominant Class ---------------- Mutant | -10/Materials Mutant | -10/Mines Mutant | -10/Exiles Assassin | -9/Mines Scavenger-Scout | -8/Materials Scavenger-Scout | -7/Factory Assassin | -7/Lower Caves Hacker-Scout | -7/Lower Caves Hacker-Scout | -6/Factory Hacker-Ninja | -6/DSF Hacker-Mutant | -5/Factory Hacker-Mutant | -4/Factory Resources | -11 -10 -10 -10 -9 -8 -7 -7 -7 -6 -6 -5 -4 ----------- Run | Yrd Mat Min Exi Min Mat Fac Low Low Fac DSF Fac Fac Matter Collected 997 | 296 16 8 . 19 65 399 74 10 . . 110 . Remotely 163 | . . . . . . 163 . . . . . . Salvage Created 669 | 104 . . . 60 67 113 98 . . . 160 67 Parts 53 | 4 . . . 10 11 8 9 . . . 4 7 Haulers Intercepted . | . . . . . . . . . . . . . Recyclers Shooed . | . . . . . . . . . . . . . Parts Field Recycled . | . . . . . . . . . . . . . Retrieved Matter . | . . . . . . . . . . . . . Parts Self-Destructed 5 | . . . . . . . 5 . . . . . Prevented . | . . . . . . . . . . . . . Parts Restored . | . . . . . . . . . . . . . Kills | -11 -10 -10 -10 -9 -8 -7 -7 -7 -6 -6 -5 -4 ------- Run | Yrd Mat Min Exi Min Mat Fac Low Low Fac DSF Fac Fac Combat Hostiles Destroyed 22 | . . . . 4 4 4 6 . . . . 4 Melee 4 | . . . . 1 . 3 . . . . . . Guns 4 | . . . . 3 . . 1 . . . . . AOE 14 | . . . . . 4 1 5 . . . . 4 Classes Destroyed 7 | 2 . . . 1 2 . . . . . 1 1 Worker 1 | . . . . . . . . . . . 1 . Builder 1 | . . . . . . . . . . . . 1 Tunneler 1 | 1 . . . . . . . . . . . . Recycler 3 | 1 . . . . 1 . . . . . 1 . Operator 1 | . . . . . 1 . . . . . . . Swarmer 21 | . . . . 4 3 4 6 . . . . 4 Grunt 1 | . . . . . 1 . . . . . . . Best Kill Streak 6 | 2 . . . 4 5 3 6 . . . 2 5 Combat Bots Only 6 | . . . . 4 4 3 6 . . . . 4 Max Kills in Single Turn 4 | 1 . . . 1 2 1 3 . . . 1 4 Gunslinging . | . . . . . . . . . . . . . Exploded 3 | . . . . . 2 1 3 . . . . 3 Melee 1 | . . . . 1 . 1 . . . . . . Uniques/NPCs Destroyed . | . . . . . . . . . . . . . Combat | -11 -10 -10 -10 -9 -8 -7 -7 -7 -6 -6 -5 -4 -------- Run | Yrd Mat Min Exi Min Mat Fac Low Low Fac DSF Fac Fac Hostile Shots Fired 318 | . . . . 9 17 42 34 . . 6 31 179 Missed 119 | . . . . 2 10 20 16 . . 5 12 54 Hits 199 | . . . . 7 7 22 18 . . 1 19 125 Melee 1 | . . . . . . . . . . . 1 . Projectile 198 | . . . . 7 7 22 18 . . 1 18 125 AOE 5 | . . . . . . . . . . 4 1 . Critical Strikes 5 | . . . . . . . . . . . . 5 Part Disruptions 2 | . . . . . . 1 . . . . . 1 Damage Taken 3880 | . . . . 51 119 466 270 . . 116 380 2478 Core 1643 | . . . . 6 29 175 76 . . 36 158 1163 Absorbed by Shields 5 | . . . . . . . . . . 5 . . Regen/Repaired (Parts) 33 | . . . . . . 17 . . . . . 16 Core Remaining (%) 89 | 100 . . . 97 94 . . 64 . 95 84 . Volleys Fired 33 | 4 4 2 . 3 7 4 4 . . . 1 4 Largest 2 | 2 2 2 . 1 1 1 1 . . . 1 1 Hottest 80 | 40 40 40 . 20 33 39 80 . . . 39 39 Shots Fired 44 | 8 8 4 . 3 7 5 4 . . . 1 4 Gun 25 | 8 8 4 . 3 . . 2 . . . . . Cannon . | . . . . . . . . . . . . . Launcher 17 | . . . . . 7 3 2 . . . 1 4 Special 2 | . . . . . . 2 . . . . . . Kinetic 23 | 8 8 4 . 3 . . . . . . . . Thermal 2 | . . . . . . . 2 . . . . . Explosive 14 | . . . . . 7 2 2 . . . . 3 Electromagnetic 3 | . . . . . . 1 . . . . 1 1 Robot Hit Streak 7 | 5 2 2 . 3 4 2 4 . . . . 7 Robot Miss Streak 3 | 1 3 1 . . 2 1 2 . . . . . Penetration Max . | . . . . . . . . . . . . . Secondary Targets . | . . . . . . . . . . . . . Shots Hit Robots 43 | 6 3 2 . 4 5 10 4 . . . 2 7 Core Hits 45 | 3 . 2 . 4 9 7 8 . . . 2 10 Critical Kills . | . . . . . . . . . . . . . Critical Parts Destroyed . | . . . . . . . . . . . . . Critical Strikes 1 | . . . . . . . . . . . . 1 Sever 1 | . . . . . . . . . . . . 1 Melee Attacks 125 | . . . . 1 20 77 3 . . . 12 12 Impact 7 | . . . . . . 3 . . . . . 4 Slashing 116 | . . . . 1 20 74 3 . . . 12 6 Piercing . | . . . . . . . . . . . . . Sneak Attacks 6 | . . . . 1 1 . . . . . 2 2 Combat Hostiles 1 | . . . . 1 . . . . . . . . Follow-up Attacks . | . . . . . . . . . . . . . Damage Inflicted 2643 | 59 27 19 . 139 572 634 473 . . . 181 539 Guns 182 | 59 27 19 . 33 . . 44 . . . . . Cannons . | . . . . . . . . . . . . . Explosions 1386 | . . . . . 422 214 317 . . . . 433 Melee 1047 | . . . . 106 150 420 112 . . . 181 78 Ramming 28 | . . . . . . . . . . . . 28 Kinetic 138 | 59 27 19 . 33 . . . . . . . . Thermal 44 | . . . . . . . 44 . . . . . Explosive 1285 | . . . . . 422 126 317 . . . . 420 Electromagnetic 101 | . . . . . . 88 . . . . . 13 Impact . | . . . . . . . . . . . . . Slashing 1047 | . . . . 106 150 420 112 . . . 181 78 Piercing . | . . . . . . . . . . . . . Highest Corruption 9 | . . . . . . 2 2 2 . . 1 9 Average Corruption 2 | . . . . . . 1 2 2 . . 1 5 Corruption Purged . | . . . . . . . . . . . . . Corruption Blocked . | . . . . . . . . . . . . . Effects 8 | . . . . . . 3 1 . . . . 4 Message Errors 1 | . . . . . . 1 . . . . . . Matter Fused 3 | . . . . . . . . . . . . 3 Heat Flow Errors 2 | . . . . . . 1 1 . . . . . Data Loss (minor) 1 | . . . . . . . . . . . . 1 Misfires 1 | . . . . . . 1 . . . . . . Overload Shots . | . . . . . . . . . . . . . Overflow Damage 98 | . . . . . 13 85 . . . . . . Projectiles . | . . . . . . . . . . . . . Explosions 13 | . . . . . 13 . . . . . . . Melee 85 | . . . . . . 85 . . . . . . Knockbacks . | . . . . . . . . . . . . . Impact . | . . . . . . . . . . . . . Kinetic . | . . . . . . . . . . . . . Secondary . | . . . . . . . . . . . . . Self-Inflicted Damage 156 | . . . . . 40 51 . . . . 14 51 Shots 6 | . . . . . 1 2 . . . . 1 2 Rammed 3 | . . . . . . . . . . . . 3 Targets Rammed 3 | . . . . . . . . . . . . 3 Kicked . | . . . . . . . . . . . . . Crushed . | . . . . . . . . . . . . . Highest Temperature 208 | . . . . . 3 190 208 . . . . . Average Temperature 97 | . . . . . 3 99 99 . . . . . Received Heat Transfer 342 | . . . . . 9 . . . . . . 333 Siege Activations . | . . . . . . . . . . . . . Martial Activations . | . . . . . . . . . . . . . Shielding Activations . | . . . . . . . . . . . . . Robots Disrupted . | . . . . . . . . . . . . . Combat Hostiles . | . . . . . . . . . . . . . Robots Corrupted . | . . . . . . . . . . . . . Combat Hostiles . | . . . . . . . . . . . . . Parts Fried . | . . . . . . . . . . . . . Impact Corruptions . | . . . . . . . . . . . . . Robots Melted . | . . . . . . . . . . . . . Combat Hostiles . | . . . . . . . . . . . . . Parts Melted . | . . . . . . . . . . . . . Heat Transferred 100 | . . . . . . . 100 . . . . . Parts Sabotaged . | . . . . . . . . . . . . . Parts Stolen . | . . . . . . . . . . . . . Parts Stripped . | . . . . . . . . . . . . . Power Chain Reactions . | . . . . . . . . . . . . . Alert | -11 -10 -10 -10 -9 -8 -7 -7 -7 -6 -6 -5 -4 ------- Run | Yrd Mat Min Exi Min Mat Fac Low Low Fac DSF Fac Fac Maximum Alert Level . | . . . . . . . . . . . . . Low Security (%) 100 | 100 100 100 . 100 100 100 . . 100 100 100 100 Level 1 . | . . . . . . . . . . . . . Level 2 . | . . . . . . . . . . . . . Level 3 . | . . . . . . . . . . . . . Level 4 . | . . . . . . . . . . . . . Level 5 . | . . . . . . . . . . . . . High Security . | . . . . . . . . . . . . . Max Security . | . . . . . . . . . . . . . Peak Influence 155 | 10 17 . . 90 155 124 . . 30 29 50 110 Initial 24 | . . . . . 3 . . . 16 14 4 24 Average 17 | 1 1 . . 49 38 12 . . 20 16 22 12 Influence Increases 1360 | 10 17 . . 90 341 359 140 . 14 15 143 231 Destroy 0b10 Robot/C 440 | . . . . 80 80 80 120 . . . . 80 Destroy 0b10 Robot/NC 35 | 10 . . . . 10 . . . . . 10 5 Destroy Leader 60 | . . . . 10 10 10 20 . . . . 10 Successful Hack 148 | . 17 . . . 28 33 . . 14 . 56 . Select Force Hacks 50 | . . . . . . . . . . . 50 . Disable Machine 45 | . . . . . . 15 . . . . . 30 Destroy Structure 147 | . . . . . 48 71 . . . . 12 16 Partial Spotted 75 | . . . . . 30 15 . . . . 15 15 Lose Combat Pursuer 360 | . . . . . 135 135 . . . 15 . 75 Influence Decreases 1307 | 10 17 . . 80 351 334 95 44 20 26 102 228 Entered New Map 78 | . . . . . 7 . 10 14 10 6 5 26 Time Decay 672 | 10 17 . . 80 111 181 45 30 10 . 88 100 Lost Part 208 | . . . . . 3 34 40 . . 20 9 102 Lost Ally 30 | . . . . . 30 . . . . . . . Purge Threat 319 | . . . . . 200 119 . . . . . . Squads Dispatched 12 | . 1 . . . 1 2 . . . 1 4 3 Investigation 3 | . . . . . . . . . . . 2 1 Extermination 4 | . . . . . . 2 . . . . . 2 Reinforcement 5 | . 1 . . . 1 . . . . 1 2 . Assault . | . . . . . . . . . . . . . Garrison . | . . . . . . . . . . . . . Intercept . | . . . . . . . . . . . . . Searches Triggered . | . . . . . . . . . . . . . Construction Impeded . | . . . . . . . . . . . . . Haulers Reinforced . | . . . . . . . . . . . . . Active Scanning Responses . | . . . . . . . . . . . . . Cargo Convoy Interrupts . | . . . . . . . . . . . . . Stealth | -11 -10 -10 -10 -9 -8 -7 -7 -7 -6 -6 -5 -4 --------- Run | Yrd Mat Min Exi Min Mat Fac Low Low Fac DSF Fac Fac Distress Signals 3 | . 2 . . . 1 . . . . . . . Communications Jammed . | . . . . . . . . . . . . . Distress Signals . | . . . . . . . . . . . . . Times Spotted 82 | . 2 2 . 3 19 14 6 . . 6 6 24 Peak Tracking Total 14 | . 2 2 . 3 7 7 6 . . 5 5 14 Tactical Retreats 13 | . . . . . 4 4 . . . 1 . 4 Traps | -11 -10 -10 -10 -9 -8 -7 -7 -7 -6 -6 -5 -4 ------- Run | Yrd Mat Min Exi Min Mat Fac Low Low Fac DSF Fac Fac Traps Triggered 4 | . . . . . . 1 . . . 1 1 1 Indirectly . | . . . . . . . . . . . . . Trap Hack Attempts . | . . . . . . . . . . . . . Triggered . | . . . . . . . . . . . . . Disarmed . | . . . . . . . . . . . . . Reprogrammed . | . . . . . . . . . . . . . Reused . | . . . . . . . . . . . . . Traps Extracted . | . . . . . . . . . . . . . Installed . | . . . . . . . . . . . . . Triggered . | . . . . . . . . . . . . . Machines | -11 -10 -10 -10 -9 -8 -7 -7 -7 -6 -6 -5 -4 ---------- Run | Yrd Mat Min Exi Min Mat Fac Low Low Fac DSF Fac Fac Machines Disabled 3 | . . . . . . 1 . . . . . 2 Max in Single Turn 1 | . . . . . . 1 . . . . . 1 Machines Repaired . | . . . . . . . . . . . . . Machines Dismantled . | . . . . . . . . . . . . . Machines Sabotaged 1 | . . . . . . . . . . . 1 . Overloaded Fab Kills . | . . . . . . . . . . . . . Hacking | -11 -10 -10 -10 -9 -8 -7 -7 -7 -6 -6 -5 -4 --------- Run | Yrd Mat Min Exi Min Mat Fac Low Low Fac DSF Fac Fac Machines Accessed 37 | . 4 . . . 8 12 1 . 3 . 7 2 Terminals 22 | . 3 . . . 8 4 . . 2 . 5 . Fabricators 1 | . . . . . . 1 . . . . . . Repair Stations 5 | . . . . . . 2 . . 1 . 1 1 Recycling Units 5 | . 1 . . . . 3 . . . . . 1 Scanalyzers 3 | . . . . . . 2 . . . . 1 . Garrison Access . | . . . . . . . . . . . . . Total Hacks 107 | . 9 . . . 30 30 1 . 9 . 21 7 Successful 72 | . 5 . . . 21 22 1 . 4 . 12 7 Failed 35 | . 4 . . . 9 8 . . 5 . 9 . Catastrophic 3 | . . . . . . 1 . . . . 2 . Database Lockouts . | . . . . . . . . . . . . . Manual 70 | . 7 . 1 . 24 12 . . 7 . 17 2 Terminals 74 | . 7 . . . 30 13 . . 7 . 17 . Fabricators 1 | . . . . . . 1 . . . . . . Repair Stations 13 | . . . . . . 4 . . 2 . 2 5 Recycling Units 10 | . 2 . . . . 6 . . . . . 2 Scanalyzers 8 | . . . . . . 6 . . . . 2 . Garrison Access . | . . . . . . . . . . . . . Terminal Hacks 15 | . . . . . 9 3 1 . 1 . 1 . Open Door 1 | . . . . . . . 1 . . . . . Open DSF 1 | . . . . . . . . . 1 . . . Level Access Points 1 | . . . . . 1 . . . . . . . Branch Access Points 1 | . . . . . 1 . . . . . . . Emergency Access Points 1 | . . . . . 1 . . . . . . . Terminal Index 3 | . . . . . 1 1 . . . . 1 . Unreport Threat 4 | . . . . . 3 1 . . . . . . Hauler Manifests 1 | . . . . . 1 . . . . . . . Registered Components 2 | . . . . . 1 1 . . . . . . Fabricator Hacks 1 | . . . . . . 1 . . . . . . Network Status 1 | . . . . . . 1 . . . . . . Repair Station Hacks 7 | . . . . . . 2 . . . . 1 4 Scan Component 4 | . . . . . . 1 . . . . 1 2 Repair 3 | . . . . . . 1 . . . . . 2 Recycling Unit Hacks 6 | . 1 . . . . 4 . . . . . 1 Process 1 | . . . . . . 1 . . . . . . Report Inventory 4 | . 1 . . . . 2 . . . . . 1 Retrieve Components 1 | . . . . . . 1 . . . . . . Scanalyzer 6 | . . . . . . 5 . . . . 1 . Insert Component 1 | . . . . . . 1 . . . . . . Analyze 1 | . . . . . . 1 . . . . . . Retrieve Study 4 | . . . . . . 3 . . . . 1 . Garrison Access Hacks . | . . . . . . . . . . . . . Unauthorized Hacks 37 | . 4 . . . 12 7 . . 3 . 9 2 Terminals 32 | . 3 . . . 12 5 . . 3 . 9 . Track 2 | . . . . . 1 . . . . . 1 . Assimilate 10 | . . . . . 5 2 . . 1 . 2 . Botnet 14 | . 1 . . . 5 3 . . 1 . 4 . Operators 5 | . 2 . . . 1 . . . 1 . 1 . Sabotage 1 | . . . . . . . . . . . 1 . Fabricators . | . . . . . . . . . . . . . Repair Stations 1 | . . . . . . . . . . . . 1 Mechanics 1 | . . . . . . . . . . . . 1 Recycling Units 3 | . 1 . . . . 1 . . . . . 1 Recyclers 3 | . 1 . . . . 1 . . . . . 1 Scanalyzers 1 | . . . . . . 1 . . . . . . Researchers 1 | . . . . . . 1 . . . . . . Garrison Access . | . . . . . . . . . . . . . Data Cores Recovered 1 | . 1 . . . . . . . . . . . Used . | . . . . . . . . . . . . . Hacking Detections 33 | . 4 . . . 8 12 . . 2 . 6 1 Full Trace Events 1 | . . . . . . . . . . . 1 . Feedback Events . | . . . . . . . . . . . . . Feedback Blocked . | . . . . . . . . . . . . . Robot Schematics Acquired . | . . . . . . . . . . . . . Robots Built . | . . . . . . . . . . . . . Authchips . | . . . . . . . . . . . . . Time . | . . . . . . . . . . . . . Total Robot Build Rating . | . . . . . . . . . . . . . Part Schematics Acquired 1 | . . . . . . 1 . . . . . . Parts Built . | . . . . . . . . . . . . . Authchips . | . . . . . . . . . . . . . Time . | . . . . . . . . . . . . . Total Part Build Rating . | . . . . . . . . . . . . . Part Studies Acquired 4 | . . . . . . 3 . . . . 1 . Parts Repaired 3 | . . . . . . 1 . . . . . 2 Time 104 | . . . . . . 16 . . . . . 88 Parts Recycled . | . . . . . . . . . . . . . Recycled Matter 70 | . . . . . . 70 . . . . . . Retrieved Matter . | . . . . . . . . . . . . . Retrieved Components 2 | . . . . . . 2 . . . . . . Parts Scanalyzed 1 | . . . . . . 1 . . . . . . Part Schematics Acquired 1 | . . . . . . 1 . . . . . . Parts Damaged 1 | . . . . . . 1 . . . . . . Bothacking | -11 -10 -10 -10 -9 -8 -7 -7 -7 -6 -6 -5 -4 ------------ Run | Yrd Mat Min Exi Min Mat Fac Low Low Fac DSF Fac Fac Used RIF Installer . | . . . . . . . . . . . . . Robots Hacked 3 | . . . . . . 1 . . . . . 2 Non-combat 3 | . . . . . . 1 . . . . . 2 Combat . | . . . . . . . . . . . . . Robot Hacks Applied 3 | . . . . . . 1 . . . . . 2 no_distress 2 | . . . . . . 1 . . . . . 1 find_chute 1 | . . . . . . . . . . . . 1 Relay Couplers Released . | . . . . . . . . . . . . . Fabnet Peak Effective % . | . . . . . . . . . . . . . Robots Rewired . | . . . . . . . . . . . . . Allies Hacked . | . . . . . . . . . . . . . Hacks Repelled . | . . . . . . . . . . . . . Allies | -11 -10 -10 -10 -9 -8 -7 -7 -7 -6 -6 -5 -4 -------- Run | Yrd Mat Min Exi Min Mat Fac Low Low Fac DSF Fac Fac Total Allies 4 | . . . . . 3 1 . . . . . . Largest Group 3 | . . . . . 3 1 . . . . . . Highest-Rated Group 30 | . . . . . 30 26 . . . . . . Highest-Rated Ally 26 | . . . . . 10 26 . . . . . . Total Orders . | . . . . . . . . . . . . . Ally Attacks . | . . . . . . . . . . . . . Total Damage . | . . . . . . . . . . . . . Kills . | . . . . . . . . . . . . . Allies Corrupted . | . . . . . . . . . . . . . Allies Melted . | . . . . . . . . . . . . . Intel | -11 -10 -10 -10 -9 -8 -7 -7 -7 -6 -6 -5 -4 ------- Run | Yrd Mat Min Exi Min Mat Fac Low Low Fac DSF Fac Fac Active Infowar (turns) 3526 | 16 189 43 588 173 254 1153 169 75 24 46 237 559 Optics 2511 | . . . . . 248 1153 169 75 24 46 237 559 Sensors 5 | . . . . . . . . . . 5 . . Terrain 2586 | 16 189 43 588 173 114 1153 169 75 24 42 . . Triangulation 654 | . . . . . . . . . . 29 237 388 Jamming 2 | . . . . . . 2 . . . . . . ECM 1 | . . . . . . . . . . . . 1 Robot Analysis Total . | . . . . . . . . . . . . . Derelict Logs Recovered 2 | . . . . . . . 1 1 . . . . Drone Launches . | . . . . . . . . . . . . . Drone Recoveries . | . . . . . . . . . . . . . Exploration | -11 -10 -10 -10 -9 -8 -7 -7 -7 -6 -6 -5 -4 ------------- Run | Yrd Mat Min Exi Min Mat Fac Low Low Fac DSF Fac Fac Turns Passed 3638 | 87 189 43 588 173 295 1153 169 75 24 46 237 559 Spaces Moved 4971 | 53 148 31 489 127 481 1879 332 246 71 108 404 602 Core 149 | 5 . . . . . . . . . . . 144 Treads . | . . . . . . . . . . . . . Legs 868 | 48 148 31 489 127 . . . . . . . 25 Wheels . | . . . . . . . . . . . . . Hover . | . . . . . . . . . . . . . Flight 3954 | . . . . . 481 1879 332 246 71 108 404 433 Fastest Speed 27 | 50 120 120 120 120 28 27 28 30 28 28 34 37 Average Speed 51 | 117 120 120 120 120 30 28 42 30 28 32 42 74 Slowest Speed 200 | 120 120 120 120 120 111 112 114 30 30 114 117 200 Overloaded Moves . | . . . . . . . . . . . . . Propulsion Burnouts . | . . . . . . . . . . . . . Robots Hopped 10 | . . . . . 6 2 . 1 . . . 1 Potential Cave-ins 4 | . . . . . . . . . . . 4 . Cave-ins Triggered 1 | . . . . . . 1 . . . . . . Exploration Rate (%) 33 | 5 27 7 90 33 47 32 51 27 3 85 11 14 Regions Visited 12 Branch Regions 5 Pre-discovered Areas 1 | . . . . 1 . . . . . . . . Known Exits Taken 3 | . . . . . 1 . 1 . 1 . . . Unknown Exits Taken 8 | 1 1 1 1 1 . 1 . 1 . . 1 . Scrap Searched 3 | . . . . . . . 2 1 . . . . Spaces Dug 101 | . . . . . 19 62 2 . . . 10 8 Terrain Destroyed 171 | . . . . . 53 78 22 . . . 10 8 Melee 101 | . . . . . 19 62 2 . . . 10 8 Projectile . | . . . . . . . . . . . . . AOE 70 | . . . . . 34 16 20 . . . . . Terrain Rammed . | . . . . . . . . . . . . . Walls Destroyed . | . . . . . . . . . . . . . Machines Disabled . | . . . . . . . . . . . . . Actions | -11 -10 -10 -10 -9 -8 -7 -7 -7 -6 -6 -5 -4 --------- Run | Yrd Mat Min Exi Min Mat Fac Low Low Fac DSF Fac Fac Total 5830 | 66 152 33 489 144 594 2419 350 245 72 118 456 692 Wait 583 | . . 1 . 8 69 426 4 . . . 18 57 Move 4939 | 52 147 30 488 126 468 1874 331 243 70 107 403 600 Hop 10 | . . . . . 6 2 . 1 . . . 1 Pick Up 20 | 2 1 . . 5 4 6 1 . . 1 . . Fast Attach 27 | 7 . . . . 2 2 3 . 2 1 1 9 Attach 19 | . . . . . 3 7 . . . 1 3 5 Detach 6 | . . . . . 1 1 . . . . 3 1 Swap 36 | 1 . . 1 . 9 17 3 . . 5 . . Drop 17 | . . . . 1 5 6 1 1 . 3 . . Fire 33 | 4 4 2 . 3 7 4 4 . . . 1 4 Melee 122 | . . . . 1 20 74 3 . . . 12 12 Ram 3 | . . . . . . . . . . . . 3 Kick . | . . . . . . . . . . . . . Crush . | . . . . . . . . . . . . . Escape Stasis 15 | . . . . . . . . . . . 15 . Rewire . | . . . . . . . . . . . . . Trap . | . . . . . . . . . . . . . Miscellaneous . | . . . . . . . . . . . . . Route ------- -11/Scrapyard -10/Materials -10/Mines -10/Exiles -9/Mines (discovered 2 exits: *Mat x2) -8/Materials (discovered 4 exits: *Fac x3 / *Sto) -7/Factory -7/Lower Caves -7/Lower Caves -6/Factory (discovered 2 exits: Ext / DSF) -6/DSF -5/Factory (discovered 2 exits: *Fac x2) -4/Factory (discovered 1 exit: [*Upp]) History --------- Turn | Location | Event 46 | -11/Scrapyard | Discovered new exit (range 16) 88 | -11/Scrapyard | Entered Materials 246 | -10/Materials | Met 8R-AWN 246 | -10/Materials | Discovered new exit (range 13) 277 | -10/Materials | Entered Mines 278 | -10/Mines | Followed 8R-AWN into the Mines 302 | -10/Mines | Build established: Mutant 315 | -10/Mines | Discovered new exit (range 5) 320 | -10/Mines | Entered Exiles 349 | -10/Exiles | Welcomed by 8R-AWN 371 | -10/Exiles | Met EX-HEX 421 | -10/Exiles | Met EX-DEC 447 | -10/Exiles | Visited The Gauntlet 650 | -10/Exiles | Discovered new exit (range 10) 731 | -10/Exiles | Met EX-BIN 745 | -10/Exiles | Aligned with FarCom system 746 | -10/Exiles | Given EX-Vault access code 785 | -10/Exiles | Opened EX-Vault 791 | -10/Exiles | Found Prototype Slashing Weapon 791 | -10/Exiles | Identified Longsword +1 819 | -10/Exiles | Warned to stay clear of 0b10 Research branches 908 | -10/Exiles | Left Exiles lab with Longsword +1 908 | -10/Exiles | Entered Mines 1021 | -9/Mines | Found a damaged Exp. Sensor Array with a note attached 1024 | -9/Mines | Found Prototype Device 1040 | -9/Mines | Discovered new exit (range 9) 1049 | -9/Mines | Received a Rocket Launcher from a helpful Derelict 1071 | -9/Mines | Discovered new exit (range 10) 1072 | -9/Mines | Learned location of Storage (-8) 1081 | -9/Mines | Entered Materials 1081 | -8/Materials | Evolved 4 slots: Propulsion x2, Utility x2 1155 | -8/Materials | Discovered new exit (range 15) 1238 | -8/Materials | Discovered new exit (range 11) 1266 | -8/Materials | Identified exit to Storage 1266 | -8/Materials | Identified exit to Factory 1376 | -8/Materials | Entered Factory 1376 | -7/Factory | Evolved 2 slots: Utility x2 1395 | -7/Factory | Discovered new exit (range 10) 1787 | -7/Factory | Build established: Scavenger-Scout 2076 | -7/Factory | Repaired VTOL Module+ 2208 | -7/Factory | Crushed by falling debris 2324 | -7/Factory | Identified Exp. Sensor Array 2529 | -7/Factory | Entered Lower Caves 2587 | -7/Lower Caves | Murdered Warlord Statue 2604 | -7/Lower Caves | Identified exit to Lower Caves 2654 | -7/Lower Caves | Lost 4 parts (2n1u1w) 2698 | -7/Lower Caves | Entered another Lower Caves area 2704 | -7/Lower Caves | Discovered new exit (range 14) 2714 | -7/Lower Caves | Encountered a Warlord checkpoint 2714 | -7/Lower Caves | Learned location of 1 exit from Factory 2773 | -7/Lower Caves | Entered Factory 2773 | -6/Factory | Evolved 2 slots: Utility x2 2774 | -6/Factory | Identified exit to Extension 2797 | -6/Factory | Identified exit to DSF 2797 | -6/Factory | Entered DSF 2826 | -6/DSF | Additional patrols routed to DSF 2836 | -6/DSF | Discovered new exit (range 22) 2843 | -6/DSF | Entered Factory 2843 | -5/Factory | Evolved 2 slots: Utility x2 3066 | -5/Factory | Discovered new exit (range 17) 3074 | -5/Factory | Lost 3 parts (1p2n) 3074 | -5/Factory | Discovered new exit (range 21) 3080 | -5/Factory | Entered another Factory area 3080 | -4/Factory | Evolved 2 slots: Utility x2 3095 | -4/Factory | Discovered new exit (range 14) 3149 | -4/Factory | Build established: Hacker-Mutant 3240 | -4/Factory | Repaired Lgt. Nuclear Core 3290 | -4/Factory | Repaired Nuclear Pulse Thruster+ 3499 | -4/Factory | Lost 7 parts (1p2n2u2w) 3587 | -4/Factory | Core integrity fell below 50% 3637 | -4/Factory | Core integrity fell below 20% 3639 | -4/Factory | Destroyed by P-70 Sage with Tesla Rifle Last Messages --------------- 03586_ Imp. Grenade Launcher destroyed. 03587_ U-05 Engineer lays Concrete. 03594_ Critical hit (Burn: +37). 03598_ System corrupted: Matter fused (-6). 03602_ Acquired Adv. Signal Interpreter. 03604_ Acquired Adv. Targeting Computer. 03613_ System corrupted: Matter fused (-10). 03615_ Hacking Suite destroyed. 03615_ Adv. Targeting Computer destroyed. 03623_ Assembly Bed disabled. 03624_ Proton Missile Launcher destroyed. 03630_ P-70 Sage resets S-27 Virus, system corruption cleaned. 03634_ Assembly Bed disabled. 03636_ Slammed into P-70 Sage. 03637_ Slammed into G-67 Veteran. 03637_ Enh. Optical Array broken. 03637_ Destabilizing: Short circuit. 03638_ Slammed into G-67 Veteran. 03638_ Destabilizing: System corrupted (+2). Map ----- +----------------------------------------------------+ | ?????????????????????????????????????????????????? | | ?????????????????????????????????????????????????? | | ?????????????????????????????????????????????????? | | ?????????????????????????????????????????????????? | | ?????????????????????????????????????????????????? | | ?????????????????????????????????????????????????? | | ?????????????????????????????????????????????????? | | ?????????????????????????????????????? ????????? | | ?????????????????????????????????????? ??????? | | ?????????????????????????????????????? +?????? | | ?????????????????????????????????????? #?????? | | ?????????????????????????????????????# #?????? | | ?????????????????????????????????????# #?????? | | ???????????????##############????????# #?????? | | ???????????????# ! #????????# #?????? | | ???????????????# #????????# +?????? | | ???????????????# """" " #????????+ #?????? | | ???????????????# """" " #????????# #?????? | | ???????????????# """" " #????????# #?????? | | ???????????????# """" " #????????# ####### | | ???????????????# """" " #????????# | | ???????????????# """ "" #?????R??# | | ???????????????# s s #????????# " | | ???????????????# s s #????????# T | | ???????????????# s gg #????????# "Y | | ????????????gg?# p @g #????????# m | | ???????????g?l?############+########## ^ | | ???????????????????##### g ^ | | ????????????? """""" | | ????????" """""" | | ????????" """""" | | ????????" ########## """""" | | ????????" ?????????????###/############ | | ???????????????????????? ???????????# | | ?????????????????????? ???????????# | | ????????????????????# ???????????# | | ????????????????????# ???????????# ! [ | | ????????????????????# ???????????# ! [ | | ????????????????????# ???????????# !![ | | ????????????????????# ???????????# #####+## | | ????????????????????# ???????????# #??????? | | ????????????????????# ?????????? #??????? | | ????????????????????# ?????????#######??????? | | ????????????????????# ???????????????????????? | | ????????????????????# ???????????????????????? | | ????????????????????######???????????????????????? | | ?????????????????????????????????????????????????? | | ?????????????????????????????????????????????????? | | ?????????????????????????????????????????????????? | | ?????????????????????????????????????????????????? | +----------------------------------------------------+ Best States ------------- Heat Dissipation 43 Energy Generation 21 Energy Capacity 250 Matter Stores 300 Matter Capacity 300 Sight Range 22 Robot Scan Range 16 Terrain Scan Range 16 Terrain Scan Density 85 Jamming Range 12 Evasion (%) 64 Targeting Accuracy 8 Offensive Hacking 34 Defensive Hacking 10 Item Schematics ----------------- Exp. Sensor Array | -7/Factory | Scanalyzed Robot Schematics ------------------ None Fabricated ------------ Nothing Repaired ---------- VTOL Module | 32% | -7/Factory Nuclear Pulse Thruster | 46% | -4/Factory Studied --------- Flight Unit | -7/Factory | Hacked VTOL Module | -7/Factory | Hacked Mic. Nuclear Core | -7/Factory | Hacked Nuclear Pulse Thruster | -5/Factory | Hacked Alien Tech Used ----------------- None Achievements -------------- Follow The Leader Recruitment Drive Challenges ------------ None Game ------ Seed ElectrostormFissionGun Manual? 0 Play Time 01:13:51 Cumulative 28.9 hours Start 2026.03.14 @ 22:58:31 End 2026.03.15 @ 00:17:37 Sessions 1 Manual Loads 0 Difficulty Rogue Special Mode None Game No. 51 Rogue 51 Adventurer 0 Explorer 0 Win Type - Total 0 Types 0/0/0/0/0/0/0/0/0/0 Lore% 24 Gallery% 24 Achievement% 21 Wizard Run 0 Options --------- Layout 1 ASCII 0 Keyboard 0 Movement Numpad Keybinds 0 Fullscreen 1 Font 24/Smallcaps Map View 50x35 Zoom Use 0% Tactical HUD 1 Map Filters NONE Filters NONE Steam 1 RUN: 6397b6fa-f6f5-4835-bca6-0c327748e515